[Event "CZE-ch Youth B16 2022"]
[Site "Luhacovice"]
[Date "2022.03.12"]
[Round "1.3"]
[White "Winter, Ondrej"]
[Black "Stejskal, Michal"]
[Result "1-0"]
[ECO "B31"]
[WhiteElo "2147"]
[BlackElo "1857"]
[Annotator "ChessBase"]
[PlyCount "93"]
[EventDate "2022.03.12"]
[EventType "swiss"]
[EventCountry "CZE"]
[SourceTitle "playchess.com"]
[Source "ChessBase"]
[SourceQuality "1"]
[TimeControl "40/5400+30:1800+30"]

1. e4 {[%emt 0:00:48]} c5 {[%emt 0:00:10]} 2. Nf3 {[%emt 0:00:06]} Nc6 {[%emt 0:00:03]} 3. Bb5 {[%emt 0:00:06]} g6 {[%emt 0:00:30]} 4. Bxc6 {[%emt 0:00:30]} dxc6 {[%emt 0:00:30]} 5. d3 {[%emt 0:00:30]} Bg7 {[%emt 0:00:30]} 6. O-O {[%emt 0:00:30]} Nf6 {[%emt 0:01:26]} 7. h3 {[%emt 0:00:00]} Nd7 {[%emt 0:00:30]} 8. Nc3 {[%emt 0:00:18]} e5 {[%emt 0:00:30]} 9. Nh2 {[%emt 0:00:30]} Nf8 {[%emt 0:00:30]} 10. f4 {[%emt 0:00:30]} exf4 {[%emt 0:05:43]} 11. Bxf4 {[%emt 0:05:25]} Ne6 {[%emt 0:00:36]} 12. Bd2 {[%emt 0:03:20]} Nd4 {[%emt 0:07:14]} 13. Kh1 {[%emt 0:11:43]} O-O {[%emt 0:07:10]} 14. Be3 {[%emt 0:09:26]} b6 {[%emt 0:15:35]} 15. Qd2 {[%emt 0:01:31]} Be6 {[%emt 0:07:26]} 16. Rad1 {[%emt 0:05:12]} Qe7 {[%emt 0:07:05]} 17. b3 {[%emt 0:07:12]} Rad8 {[%emt 0:05:02]} 18. Rf2 {[%emt 0:07:04]} b5 {[%emt 0:08:48]} 19. Bh6 {[%emt 0:12:09]} c4 {[%emt 0:01:49]} 20. Bxg7 {[%emt 0:02:46]} Kxg7 {[%emt 0:00:07]} 21. Ne2 {[%emt 0:01:40]} Nxe2 {[%emt 0:02:38]} 22. Qxe2 {[%emt 0:02:38]} cxd3 {[%emt 0:01:29]} 23. cxd3 {[%emt 0:00:45]} Rd7 {[%emt 0:03:30]} 24. Qb2+ {[%emt 0:00:58]} f6 {[%emt 0:01:07]} 25. Nf3 {[%emt 0:04:41]} Rfd8 {[%emt 0:03:24]} 26. d4 {[%emt 0:06:27]} Kg8 {[%emt 0:01:03]} 27. Rc1 {[%emt 0:00:30]} Rc7 {[%emt 0:00:31]} 28. Rc5 {[%emt 0:02:19]} f5 {[%emt 0:01:39]} 29. e5 {[%emt 0:06:27]} Bd5 {[%emt 0:01:05]} 30. Qc3 {[%emt 0:00:36]} h6 {[%emt 0:05:36]} 31. Kh2 {[%emt 0:02:40]} a6 {[%emt 0:02:51]} 32. Qe3 {[%emt 0:01:23]} Kh7 {[%emt 0:00:34]} 33. Ne1 {[%emt 0:00:50]} Be6 {[%emt 0:00:40]} 34. Nd3 {[%emt 0:02:27]} Qd7 {[%emt 0:02:12]} 35. Nf4 {[%emt 0:00:26]} g5 {[%emt 0:01:32]} 36. Nxe6 {[%emt 0:01:30]} Qxe6 {[%emt 0:00:04]} 37. Qd3 {[%emt 0:00:06]} Kg6 {[%emt 0:01:14]} 38. g4 {[%emt 0:00:17]} Rf8 {[%emt 0:01:01]} 39. Kg1 {[%emt 0:01:16]} h5 {[%emt 0:00:51]} 40. Qc2 {[%emt 0:00:21]} hxg4 {[%emt 0:00:55]} 41. hxg4 {[%emt 0:30:01]} Rcc8 {[%emt 0:31:39]} 42. Kf1 {[%emt 0:01:34]} Qd7 {[%emt 0:01:05]} 43. gxf5+ {[%emt 0:01:05]} Rxf5 {[%emt 0:00:08]} 44. Qe4 {[%emt 0:00:11]} Qe6 {[%emt 0:00:56]} 45. Kg2 {[%emt 0:00:00]} g4 {[%emt 0:00:00]} 46. Kg3 {[%emt 0:00:00]} Rc7 {[%emt 0:00:00]} 47. Kxg4 {[%emt 0:00:00]} 1-0

[Event "CZE-ch Youth B16 2022"]
[Site "Luhacovice"]
[Date "2022.03.12"]
[Round "1.4"]
[White "Mametev, Artem"]
[Black "Hak, David"]
[Result "1-0"]
[ECO "C06"]
[WhiteElo "1848"]
[BlackElo "2132"]
[Annotator "ChessBase"]
[PlyCount "73"]
[EventDate "2022.03.12"]
[EventType "swiss"]
[EventCountry "CZE"]
[SourceTitle "playchess.com"]
[Source "ChessBase"]
[SourceQuality "1"]
[TimeControl "40/5400+30:1800+30"]

1. e4 {[%emt 0:00:03]} e6 {[%emt 0:00:03]} 2. d4 {[%emt 0:00:03]} d5 {[%emt 0:00:03]} 3. Nd2 {[%emt 0:00:05]} Nf6 {[%emt 0:00:04]} 4. e5 {[%emt 0:00:07]} Nfd7 {[%emt 0:00:08]} 5. Bd3 {[%emt 0:00:07]} c5 {[%emt 0:00:04]} 6. c3 {[%emt 0:00:05]} Nc6 {[%emt 0:00:19]} 7. Ne2 {[%emt 0:00:07]} cxd4 {[%emt 0:00:10]} 8. cxd4 {[%emt 0:00:07]} f6 {[%emt 0:00:11]} 9. exf6 {[%emt 0:00:14]} Nxf6 {[%emt 0:00:07]} 10. Nf3 {[%emt 0:00:51]} Bd6 {[%emt 0:00:38]} 11. O-O {[%emt 0:03:19]} Qc7 {[%emt 0:00:25]} 12. h3 {[%emt 0:01:52]} O-O {[%emt 0:00:27]} 13. Be3 {[%emt 0:00:27]} Bd7 {[%emt 0:06:56]} 14. Rc1 {[%emt 0:03:36]} Rae8 {[%emt 0:01:59]} 15. Re1 {[%emt 0:01:15]} a6 {[%emt 0:06:21]} 16. a3 {[%emt 0:01:16]} Qb8 {[%emt 0:07:18]} 17. b4 {[%emt 0:18:29]} a5 {[%emt 0:26:28]} 18. b5 {[%emt 0:15:19]} Ne7 {[%emt 0:02:06]} 19. Qa4 {[%emt 0:09:38]} b6 {[%emt 0:02:11]} 20. Ne5 {[%emt 0:04:05]} Bxe5 {[%emt 0:09:34]} 21. dxe5 {[%emt 0:10:42]} Ne4 {[%emt 0:02:55]} 22. Red1 Nc5 {[%emt 0:00:01]} 23. Bxc5 {[%emt 0:03:29]} bxc5 {[%emt 0:00:22]} 24. Rxc5 {[%emt 0:02:01]} Qxe5 25. Qd4 {[%emt 0:01:40]} Qxd4 {[%emt 0:01:25]} 26. Nxd4 {[%emt 0:01:04]} e5 27. Rc7 {[%emt 0:01:40]} Rd8 {[%emt 0:10:36]} 28. Nc6 {[%emt 0:00:30]} Nxc6 {[%emt 0:00:39]} 29. bxc6 {[%emt 0:03:25]} Bc8 {[%emt 0:04:41]} 30. Re7 {[%emt 0:03:23]} e4 {[%emt 0:09:57]} 31. Bb5 {[%emt 0:04:34]} Rd6 {[%emt 0:08:11]} 32. Bc4 {[%emt 0:01:00]} Rfd8 {[%emt 0:00:28]} 33. Rxd5 {[%emt 0:00:07]} Rxd5 34. Bxd5+ {[%emt 0:00:07]} Rxd5 {[%emt 0:00:49]} 35. Re8+ {[%emt 0:00:09]} Kf7 {[%emt 0:00:23]} 36. Rxc8 {[%emt 0:00:35]} Rc5 37. c7 1-0

[Event "CZE-ch Youth B16 2022"]
[Site "Luhacovice"]
[Date "2022.03.12"]
[Round "1.5"]
[White "Paseka, Matyas"]
[Black "Vilimek, Vit"]
[Result "1-0"]
[ECO "B33"]
[WhiteElo "2058"]
[BlackElo "1794"]
[Annotator "ChessBase"]
[PlyCount "67"]
[EventDate "2022.03.12"]
[EventType "swiss"]
[EventCountry "CZE"]
[SourceTitle "playchess.com"]
[Source "ChessBase"]
[SourceQuality "1"]
[TimeControl "40/5400+30:1800+30"]

1. e4 {[%emt 0:00:02]} c5 {[%emt 0:00:01]} 2. Nf3 {[%emt 0:00:10]} Nc6 {[%emt 0:00:05]} 3. d4 {[%emt 0:00:06]} cxd4 {[%emt 0:00:08]} 4. Nxd4 {[%emt 0:00:06]} Nf6 {[%emt 0:00:06]} 5. Nc3 {[%emt 0:00:07]} e5 {[%emt 0:00:02]} 6. Ndb5 {[%emt 0:00:07]} d6 {[%emt 0:00:10]} 7. Bg5 {[%emt 0:00:09]} a6 {[%emt 0:00:03]} 8. Na3 {[%emt 0:00:09]} b5 {[%emt 0:00:03]} 9. Nd5 {[%emt 0:00:07]} Be7 {[%emt 0:00:04]} 10. Bxf6 {[%emt 0:00:09]} Bxf6 {[%emt 0:00:02]} 11. c3 {[%emt 0:00:08]} Bg5 {[%emt 0:00:35]} 12. Nc2 {[%emt 0:00:15]} O-O {[%emt 0:00:08]} 13. a4 {[%emt 0:00:08]} bxa4 {[%emt 0:00:01]} 14. Rxa4 {[%emt 0:00:09]} a5 {[%emt 0:00:04]} 15. Bc4 {[%emt 0:00:27]} Kh8 {[%emt 0:00:08]} 16. Nce3 {[%emt 0:00:24]} Bd7 {[%emt 0:00:47]} 17. Ra2 {[%emt 0:06:54]} Ra7 {[%emt 0:05:49]} 18. b3 {[%emt 0:06:54]} Be6 {[%emt 0:04:24]} 19. Qd3 {[%emt 0:10:04]} g6 {[%emt 0:05:00]} 20. h4 {[%emt 0:02:04]} Bxh4 {[%emt 0:01:13]} 21. g3 {[%emt 0:00:10]} Bg5 {[%emt 0:00:57]} 22. f4 {[%emt 0:00:50]} exf4 {[%emt 0:01:56]} 23. gxf4 {[%emt 0:00:19]} Bh4+ {[%emt 0:01:33]} 24. Kd1 {[%emt 0:00:18]} f5 {[%emt 0:03:11]} 25. Bb5 {[%emt 0:08:24]} Nb8 {[%emt 0:08:32]} 26. Rah2 {[%emt 0:04:44]} Bf6 {[%emt 0:17:15]} 27. exf5 {[%emt 0:00:47]} Bg8 {[%emt 0:01:18]} 28. fxg6 {[%emt 0:00:42]} Rg7 {[%emt 0:14:59]} 29. Nf5 {[%emt 0:05:14]} Rxg6 {[%emt 0:02:32]} 30. Nfe7 {[%emt 0:00:11]} Kg7 {[%emt 0:13:27]} 31. Rxh7+ {[%emt 0:00:26]} Bxh7 {[%emt 0:01:16]} 32. Rxh7+ {[%emt 0:00:05]} Kxh7 {[%emt 0:01:17]} 33. Qxg6+ {[%emt 0:00:05]} Kh8 {[%emt 0:00:05]} 34. Qh6# {[%emt 0:00:04]} 1-0

[Event "CZE-ch Youth B16 2022"]
[Site "Luhacovice"]
[Date "2022.03.12"]
[Round "1.6"]
[White "Mrazek, Roman"]
[Black "Janous, Marek"]
[Result "0-1"]
[ECO "B90"]
[WhiteElo "1820"]
[BlackElo "2056"]
[Annotator "ChessBase"]
[PlyCount "90"]
[EventDate "2022.03.12"]
[EventType "swiss"]
[EventCountry "CZE"]
[SourceTitle "playchess.com"]
[Source "ChessBase"]
[SourceQuality "1"]
[TimeControl "40/5400+30:1800+30"]

1. e4 {[%emt 0:00:06]} c5 {[%emt 0:00:28]} 2. Nf3 {[%emt 0:00:13]} d6 {[%emt 0:00:16]} 3. d4 {[%emt 0:00:25]} cxd4 {[%emt 0:00:10]} 4. Nxd4 {[%emt 0:00:12]} Nf6 {[%emt 0:00:25]} 5. Nc3 {[%emt 0:00:07]} a6 {[%emt 0:00:03]} 6. Be3 {[%emt 0:00:41]} e5 {[%emt 0:01:26]} 7. Nb3 {[%emt 0:00:21]} Be7 {[%emt 0:01:27]} 8. f3 {[%emt 0:00:46]} Be6 {[%emt 0:00:43]} 9. Qd2 {[%emt 0:01:11]} O-O {[%emt 0:00:35]} 10. O-O-O {[%emt 0:01:11]} Nbd7 {[%emt 0:00:08]} 11. g4 {[%emt 0:00:49]} b5 {[%emt 0:00:10]} 12. g5 {[%emt 0:01:06]} b4 {[%emt 0:00:25]} 13. Na4 {[%emt 0:06:43]} Nh5 {[%emt 0:02:58]} 14. Kb1 {[%emt 0:02:05]} a5 {[%emt 0:05:33]} 15. Rg1 {[%emt 0:14:33]} Qc7 {[%emt 0:03:29]} 16. Bb5 {[%emt 0:11:58]} Rfb8 {[%emt 0:10:09]} 17. c4 {[%emt 0:25:46]} Bxc4 {[%emt 0:33:42]} 18. Bxd7 {[%emt 0:02:21]} Qxd7 {[%emt 0:00:34]} 19. Nb6 {[%emt 0:02:48]} Rxb6 {[%emt 0:00:09]} 20. Bxb6 {[%emt 0:00:09]} Qb5 {[%emt 0:00:29]} 21. Be3 {[%emt 0:01:40]} Be2 {[%emt 0:03:36]} 22. Qd5 {[%emt 0:03:42]} Qa6 {[%emt 0:13:32]} 23. Rc1 {[%emt 0:04:53]} a4 {[%emt 0:02:51]} 24. Nd2 {[%emt 0:00:46]} b3 {[%emt 0:02:30]} 25. Rc6 {[%emt 0:05:49]} Qd3+ {[%emt 0:08:39]} 26. Qxd3 {[%emt 0:01:13]} Bxd3+ {[%emt 0:00:01]} 27. Ka1 {[%emt 0:00:34]} f5 {[%emt 0:02:18]} 28. exf5 {[%emt 0:04:12]} Bxf5 {[%emt 0:00:28]} 29. Nc4 {[%emt 0:01:03]} Rd8 {[%emt 0:01:48]} 30. Rd1 {[%emt 0:00:50]} Bc2 {[%emt 0:00:28]} 31. Rd2 {[%emt 0:01:39]} Rf8 {[%emt 0:00:35]} 32. Rf2 {[%emt 0:01:08]} Nf4 {[%emt 0:01:05]} 33. Nxd6 {[%emt 0:04:16]} Nd3 {[%emt 0:00:10]} 34. Rf1 {[%emt 0:00:35]} Nb4 {[%emt 0:00:09]} 35. Rb6 {[%emt 0:00:38]} Nd5 {[%emt 0:00:07]} 36. Nc4 {[%emt 0:00:35]} Nxb6 {[%emt 0:02:00]} 37. Nxb6 {[%emt 0:00:05]} e4 {[%emt 0:01:51]} 38. f4 {[%emt 0:00:02]} Bxg5 {[%emt 0:00:35]} 39. Nxa4 {[%emt 0:00:40]} Bf6 {[%emt 0:00:29]} 40. axb3 {[%emt 0:01:43]} Bxb3 {[%emt 0:02:26]} 41. Nb6 {[%emt 0:30:01]} Rd8 {[%emt 0:31:05]} 42. Kb1 {[%emt 0:00:00]} Bd4 {[%emt 0:00:00]} 43. Bxd4 {[%emt 0:00:00]} Rxd4 {[%emt 0:00:00]} 44. Re1 {[%emt 0:00:00]} e3 {[%emt 0:00:00]} 45. Na4 {[%emt 0:00:00]} e2 {[%emt 0:00:00]} 0-1

[Event "CZE-ch Youth B16 2022"]
[Site "Luhacovice"]
[Date "2022.03.12"]
[Round "1.8"]
[White "Oborny, Stanislav"]
[Black "Dolensky, Filip"]
[Result "0-1"]
[ECO "E93"]
[WhiteElo "1674"]
[BlackElo "2021"]
[Annotator "ChessBase"]
[PlyCount "88"]
[EventDate "2022.03.12"]
[EventType "swiss"]
[EventCountry "CZE"]
[SourceTitle "playchess.com"]
[Source "ChessBase"]
[SourceQuality "1"]
[TimeControl "40/5400+30:1800+30"]

1. c4 {[%emt 0:00:02]} Nf6 {[%emt 0:00:07]} 2. Nc3 {[%emt 0:00:06]} g6 {[%emt 0:00:17]} 3. Nf3 {[%emt 0:00:21]} Bg7 {[%emt 0:00:05]} 4. d4 {[%emt 0:00:47]} d6 {[%emt 0:00:07]} 5. e4 {[%emt 0:00:22]} O-O {[%emt 0:00:07]} 6. Be2 {[%emt 0:00:39]} e5 {[%emt 0:00:06]} 7. d5 {[%emt 0:01:01]} Nbd7 {[%emt 0:01:25]} 8. O-O {[%emt 0:02:06]} Nh5 {[%emt 0:02:49]} 9. Ne1 {[%emt 0:03:46]} Nf4 {[%emt 0:04:06]} 10. Bxf4 {[%emt 0:03:32]} exf4 {[%emt 0:01:14]} 11. Qd2 {[%emt 0:06:01]} g5 {[%emt 0:01:43]} 12. Nd3 {[%emt 0:03:04]} Re8 {[%emt 0:02:39]} 13. f3 {[%emt 0:02:12]} Qe7 {[%emt 0:06:24]} 14. Rfe1 {[%emt 0:09:02]} h5 {[%emt 0:03:40]} 15. Kh1 {[%emt 0:09:01]} Ne5 {[%emt 0:01:42]} 16. Nf2 {[%emt 0:05:41]} a6 {[%emt 0:01:00]} 17. Rac1 {[%emt 0:02:14]} Qf6 {[%emt 0:00:33]} 18. h3 {[%emt 0:03:27]} g4 {[%emt 0:12:25]} 19. fxg4 {[%emt 0:07:09]} hxg4 {[%emt 0:01:59]} 20. Nxg4 {[%emt 0:01:19]} Bxg4 {[%emt 0:03:29]} 21. Bxg4 {[%emt 0:02:45]} Nxg4 {[%emt 0:08:08]} 22. hxg4 {[%emt 0:00:09]} Qh4+ {[%emt 0:06:17]} 23. Kg1 {[%emt 0:00:09]} Qxg4 {[%emt 0:00:44]} 24. Qd3 {[%emt 0:06:49]} Re5 {[%emt 0:02:39]} 25. Qf3 {[%emt 0:04:38]} Qxf3 {[%emt 0:00:34]} 26. gxf3 {[%emt 0:00:07]} Rg5+ {[%emt 0:00:05]} 27. Kf1 {[%emt 0:05:51]} Rg3 {[%emt 0:02:21]} 28. Kf2 {[%emt 0:05:04]} Bd4+ {[%emt 0:01:21]} 29. Ke2 {[%emt 0:00:10]} Kg7 {[%emt 0:02:54]} 30. Rh1 {[%emt 0:03:02]} Rg8 {[%emt 0:06:30]} 31. Rh4 {[%emt 0:03:07]} Be3 {[%emt 0:00:45]} 32. Rc2 {[%emt 0:01:13]} Kf6 {[%emt 0:05:58]} 33. Nd1 {[%emt 0:04:00]} Rg2+ {[%emt 0:00:31]} 34. Kd3 {[%emt 0:00:07]} Rxc2 {[%emt 0:00:05]} 35. Kxc2 {[%emt 0:00:11]} Rg2+ {[%emt 0:00:05]} 36. Kc3 {[%emt 0:01:24]} Bc1 {[%emt 0:03:51]} 37. Rh1 {[%emt 0:03:37]} Bd2+ {[%emt 0:00:24]} 38. Kd3 {[%emt 0:00:48]} Ba5 {[%emt 0:00:37]} 39. c5 {[%emt 0:03:59]} dxc5 {[%emt 0:01:54]} 40. Kc4 {[%emt 0:00:37]} Rc2+ {[%emt 0:02:37]} 41. Kb3 {[%emt 0:30:33]} Rc1 {[%emt 0:31:24]} 42. Rf1 {[%emt 0:00:38]} c4+ {[%emt 0:00:55]} 43. Ka3 {[%emt 0:00:37]} Bd2 {[%emt 0:00:39]} 44. b3 {[%emt 0:00:27]} c3 {[%emt 0:00:13]} 0-1

[Event "CZE-ch Youth B16 2022"]
[Site "Luhacovice"]
[Date "2022.03.12"]
[Round "1.11"]
[White "Bezdek, Tomas"]
[Black "Trojan, Matyas"]
[Result "1-0"]
[ECO "C50"]
[WhiteElo "1855"]
[BlackElo "1582"]
[Annotator "NA"]
[PlyCount "89"]
[EventDate "2022.03.12"]
[EventType "swiss"]
[EventCountry "CZE"]
[SourceTitle "playchess.com"]
[Source "ChessBase"]
[SourceQuality "1"]
[TimeControl "40/5400+30:1800+30"]

1. e4 {[%emt 0:00:02]} e5 {[%emt 0:00:08]} 2. Nf3 {[%emt 0:00:08]} Nc6 {[%emt 0:00:04]} 3. Bc4 {[%emt 0:00:05]} Bc5 {[%emt 0:00:17]} 4. O-O {[%emt 0:00:36]} d6 {[%emt 0:01:00]} 5. d3 {[%emt 0:00:44]} h6 {[%emt 0:02:01]} 6. c3 {[%emt 0:00:45]} Nf6 {[%emt 0:00:37]} 7. d4 {[%emt 0:07:46]} Bb6 {[%emt 0:10:41]} 8. dxe5 {[%emt 0:01:51]} dxe5 {[%emt 0:09:50]} 9. Qxd8+ {[%emt 0:01:07]} Nxd8 {[%emt 0:00:15]} 10. Re1 {[%emt 0:12:12]} Nc6 {[%emt 0:17:33]} 11. Be3 {[%emt 0:09:07]} O-O {[%emt 0:03:32]} 12. Bxb6 {[%emt 0:00:48]} axb6 {[%emt 0:01:02]} 13. Na3 {[%emt 0:03:33]} Re8 {[%emt 0:04:00]} 14. Nb5 {[%emt 0:01:12]} Re7 {[%emt 0:01:32]} 15. Rad1 {[%emt 0:01:53]} Bg4 {[%emt 0:03:44]} 16. Rd2 {[%emt 0:04:59]} Bxf3 {[%emt 0:03:24]} 17. gxf3 {[%emt 0:00:22]} Kf8 {[%emt 0:04:08]} 18. Red1 {[%emt 0:05:47]} Ke8 {[%emt 0:04:17]} 19. Bd5 {[%emt 0:13:10]} Nh5 {[%emt 0:04:15]} 20. Na3 {[%emt 0:04:41]} Nd8 {[%emt 0:09:31]} 21. Nc2 {[%emt 0:02:49]} Nf4 {[%emt 0:01:42]} 22. Ne3 {[%emt 0:02:34]} c6 {[%emt 0:05:42]} 23. Bb3 {[%emt 0:01:04]} Nde6 {[%emt 0:02:25]} 24. Nf5 {[%emt 0:03:59]} Ng5 {[%emt 0:02:41]} 25. Kh1 {[%emt 0:06:15]} Nxf3 {[%emt 0:07:56]} 26. Rd6 {[%emt 0:00:51]} Ng5 {[%emt 0:00:38]} 27. Nxe7 {[%emt 0:03:56]} Nxe4 {[%emt 0:00:33]} 28. Nf5 {[%emt 0:00:18]} Nxf2+ {[%emt 0:00:25]} 29. Kg1 {[%emt 0:00:24]} Nxd1 {[%emt 0:00:24]} 30. Rxd1 {[%emt 0:01:49]} Nh5 {[%emt 0:00:42]} 31. Nd6+ {[%emt 0:00:31]} Ke7 {[%emt 0:00:15]} 32. Nxf7 {[%emt 0:00:54]} e4 {[%emt 0:00:27]} 33. Nd6 {[%emt 0:00:57]} Nf6 {[%emt 0:00:42]} 34. Nf5+ {[%emt 0:02:21]} Kf8 {[%emt 0:00:28]} 35. Kf2 {[%emt 0:01:21]} Re8 {[%emt 0:00:37]} 36. Rg1 {[%emt 0:01:28]} Nh5 {[%emt 0:00:29]} 37. Ke3 {[%emt 0:00:44]} Re5 {[%emt 0:00:28]} 38. Nd4 {[%emt 0:01:36]} Nf6 {[%emt 0:00:22]} 39. Ne6+ {[%emt 0:00:22]} Ke7 $18 {[%emt 0:00:41]} 40. Rxg7+ {[%emt 0:00:45]} Kd6 {[%emt 0:00:05]} 41. Nd8 {[%emt 0:31:06]} Rh5 {[%emt 0:30:49]} 42. Nxb7+ {[%emt 0:01:24]} Ke5 {[%emt 0:00:05]} 43. Re7+ {[%emt 0:00:22]} Kf5 {[%emt 0:00:11]} 44. Nd6+ {[%emt 0:00:22]} Kg4 {[%emt 0:00:43]} 45. Bd1+ 1-0

[Event "CZE-ch Youth B16 2022"]
[Site "Luhacovice"]
[Date "2022.03.12"]
[Round "1.12"]
[White "Simek, Viktor"]
[Black "Dedek, Jan"]
[Result "0-1"]
[ECO "B13"]
[WhiteElo "1527"]
[BlackElo "1963"]
[Annotator "ChessBase"]
[PlyCount "78"]
[EventDate "2022.03.12"]
[EventType "swiss"]
[EventCountry "CZE"]
[SourceTitle "playchess.com"]
[Source "ChessBase"]
[SourceQuality "1"]
[TimeControl "40/5400+30:1800+30"]

1. e4 c6 2. d4 d5 3. exd5 cxd5 4. c4 Nf6 5. Nc3 Nc6 6. Nf3 g6 7. cxd5 Nxd5 8. Bc4 Nxc3 9. bxc3 Bg7 10. O-O O-O 11. Re1 Na5 12. Bb3 e6 13. Bf4 b5 14. Qe2 a6 15. Bc2 Bb7 16. Be4 Bd5 17. a4 Nc4 18. axb5 axb5 19. Bxd5 Qxd5 20. Nd2 Nb6 21. Reb1 Rxa1 22. Rxa1 Qd7 23. Ne4 Nd5 24. Bd2 Rb8 25. Nc5 Qe7 26. f4 b4 27. Rb1 Qe8 28. Qe1 bxc3 29. Rxb8 Qxb8 30. Bxc3 Qxf4 31. Nb3 Bf6 32. Qd2 Ne3 33. Qe2 Nf5 34. Qf2 Qg4 35. Qd2 Bg5 36. Qc2 Ne3 37. Qd2 Qf5 38. Qc1 Nxg2 39. Qf1 Nf4 0-1

[Event "CZE-ch Youth B16 2022"]
[Site "Luhacovice"]
[Date "2022.03.13"]
[Round "2.2"]
[White "Soucek, Petr"]
[Black "Le, Anh Dung"]
[Result "1/2-1/2"]
[ECO "A11"]
[WhiteElo "2194"]
[BlackElo "1998"]
[Annotator "ChessBase"]
[PlyCount "115"]
[EventDate "2022.03.12"]
[EventType "swiss"]
[EventCountry "CZE"]
[SourceTitle "playchess.com"]
[Source "ChessBase"]
[SourceQuality "1"]
[TimeControl "40/5400+30:1800+30"]

1. c4 {[%emt 0:00:13]} c6 {[%emt 0:00:06]} 2. Nf3 {[%emt 0:01:18]} d5 {[%emt 0:00:11]} 3. e3 {[%emt 0:00:30]} Nf6 {[%emt 0:00:24]} 4. Nc3 {[%emt 0:00:13]} e6 {[%emt 0:00:11]} 5. b3 {[%emt 0:00:32]} Bd6 {[%emt 0:01:41]} 6. Bb2 {[%emt 0:02:15]} O-O {[%emt 0:03:38]} 7. d4 {[%emt 0:01:19]} Nbd7 {[%emt 0:02:12]} 8. Bd3 {[%emt 0:00:17]} Re8 {[%emt 0:04:20]} 9. h3 {[%emt 0:00:16]} dxc4 {[%emt 0:08:15]} 10. Bxc4 {[%emt 0:05:51]} b5 {[%emt 0:02:36]} 11. Be2 {[%emt 0:05:41]} Bb7 {[%emt 0:01:34]} 12. O-O {[%emt 0:03:16]} a6 {[%emt 0:02:27]} 13. a4 {[%emt 0:02:04]} Rc8 {[%emt 0:08:40]} 14. Rc1 {[%emt 0:10:39]} Qb6 {[%emt 0:07:47]} 15. Nd2 {[%emt 0:11:18]} Bb8 {[%emt 0:05:54]} 16. Nf3 {[%emt 0:14:03]} h6 {[%emt 0:05:25]} 17. Bd3 {[%emt 0:04:03]} e5 {[%emt 0:01:31]} 18. dxe5 {[%emt 0:11:13]} Nxe5 {[%emt 0:00:34]} 19. Nxe5 {[%emt 0:00:47]} Bxe5 {[%emt 0:00:11]} 20. Qc2 {[%emt 0:01:13]} c5 {[%emt 0:01:31]} 21. axb5 {[%emt 0:02:09]} axb5 {[%emt 0:00:46]} 22. Rfd1 {[%emt 0:02:47]} Qc6 {[%emt 0:10:59]} 23. Bf1 {[%emt 0:00:07]} c4 {[%emt 0:05:42]} 24. bxc4 {[%emt 0:00:42]} bxc4 {[%emt 0:03:02]} 25. Qa4 {[%emt 0:06:40]} Qb6 {[%emt 0:09:52]} 26. Ba1 {[%emt 0:01:44]} Qb3 {[%emt 0:02:36]} 27. Rb1 {[%emt 0:04:23]} Qxa4 {[%emt 0:01:29]} 28. Nxa4 {[%emt 0:00:05]} Be4 {[%emt 0:01:19]} 29. Rbc1 {[%emt 0:01:20]} Bxa1 {[%emt 0:02:16]} 30. Rxa1 {[%emt 0:00:05]} c3 {[%emt 0:04:06]} 31. Rdc1 {[%emt 0:01:10]} c2 {[%emt 0:00:35]} 32. f3 {[%emt 0:01:12]} Bg6 {[%emt 0:00:32]} 33. e4 {[%emt 0:00:32]} Red8 {[%emt 0:00:30]} 34. Nb6 {[%emt 0:01:12]} Rc3 {[%emt 0:03:00]} 35. Ra2 {[%emt 0:02:05]} Rb3 {[%emt 0:00:40]} 36. Nc4 {[%emt 0:00:17]} Nxe4 {[%emt 0:00:55]} 37. fxe4 {[%emt 0:00:08]} Bxe4 {[%emt 0:00:08]} 38. Raxc2 {[%emt 0:00:35]} Bxc2 {[%emt 0:00:17]} 39. Rxc2 {[%emt 0:00:05]} g6 {[%emt 0:00:48]} 40. Nd2 {[%emt 0:01:18]} Rb4 {[%emt 0:00:51]} 41. Kh2 {[%emt 0:31:37]} Rf4 {[%emt 0:30:46]} 42. Nf3 {[%emt 0:01:17]} Kg7 {[%emt 0:00:30]} 43. Be2 {[%emt 0:02:20]} Re4 {[%emt 0:00:00]} 44. Ng1 {[%emt 0:00:00]} Red4 {[%emt 0:00:00]} 45. Bf3 {[%emt 0:00:00]} Rd2 {[%emt 0:00:00]} 46. Rc4 {[%emt 0:00:00]} R2d4 {[%emt 0:00:00]} 47. Rc5 {[%emt 0:00:00]} R8d7 {[%emt 0:00:00]} 48. Ne2 {[%emt 0:00:00]} Rb4 {[%emt 0:00:00]} 49. Kg3 {[%emt 0:00:00]} Rb2 {[%emt 0:00:00]} 50. Nf4 {[%emt 0:00:00]} Rbd2 {[%emt 0:00:00]} 51. Ra5 {[%emt 0:00:00]} Rb2 {[%emt 0:00:00]} 52. h4 {[%emt 0:00:00]} h5 {[%emt 0:00:00]} 53. Nh3 {[%emt 0:00:00]} Rb4 {[%emt 0:00:00]} 54. Ng5 {[%emt 0:00:00]} Rc7 {[%emt 0:00:00]} 55. Bd5 {[%emt 0:00:00]} Rc3+ {[%emt 0:00:00]} 56. Bf3 {[%emt 0:00:00]} Rc7 {[%emt 0:00:00]} 57. Ne4 {[%emt 0:00:00]} Rcc4 {[%emt 0:00:00]} 58. Ng5 {[%emt 0:00:21]} 1/2-1/2